Workbook

Sheet 2024
A2: 海気象 | B2: 更新 | C2: 2024-10-02T05:01:12.490 | M2: 45561
M3: 45566.22756
B4: １=凪、２=船外機操業可、３=５トン船操業可、４=操業不可、５=大しけ | M4: =ROUND(M3,0)-5 -> 45561
B5: 風力と波はm | Q5: 色付は-25cm未満
D6: 予報 | J6: 結果 | N6: 野田湾水温 | P6: 干潮
C7: 07:00頃の予測 | F7: 最高 | G7: 洋野町 | I7: 07:00頃の結果 | L7: 最高 | M7: 久慈市 | N7: 今年 | O7: 2023年 | P7: 時刻 | Q7: 潮位
B8: 天気図 | C8: 風向 | D8: 風力m | E8: 波m | F8: 気温 | G8: 天気 | H8: 天気図 | I8: 風向 | J8: 風力m | K8: 波m | L8: 気温 | M8: 天気 | N8: 12時 | O8: 12時 | R8: =+Q8-85 -> -85 | U8: 前年との水温差
A9: 2024-01-01 | B9: 4 | C9: N | D9: 20 | E9: 3 | F9: 1 | G9: 雪のち晴 | H9: 4 | I9: N | J9: 20 | K9: 6 | L9: 2 | M9: 雪のち晴 | N9: 10.6 | O9: 9.74 | P9: 12:16:00 | Q9: -7 | T9: ="A"&CELL("ROW",A9) -> A9 | U9: =+N9-O9 -> 0.86
A10: =+A9+1 -> 2024-01-02 | B10: 2 | C10: SW | D10: 13 | E10: 2 | F10: 6 | G10: 曇 | H10: 2 | I10: SW | J10: 13 | K10: 2 | L10: 7 | M10: 曇 | N10: 10.81 | O10: 9.41 | P10: 13:03:00 | Q10: -11 | T10: A10 | U10: 1.4
A11: =+A10+1 -> 2024-01-03 | B11: 2 | C11: NW | D11: 13 | E11: 1 | F11: 7 | G11: 曇のち雨 | H11: 2 | I11: NW | J11: 15 | K11: 1 | L11: 6 | M11: 曇のち雪 | N11: 10.62 | O11: 9.17 | P11: 14:02:00 | Q11: -15 | T11: A11 | U11: 1.45
A12: 2024-01-04 | B12: 3 | C12: NE | D12: 18 | E12: 2.5 | F12: 5 | G12: 雨のち曇 | H12: 3 | I12: NE | J12: 18 | K12: 2 | L12: 4 | M12: 雨のち曇 | N12: 10.48 | O12: 9.05 | P12: 15:16:00 | Q12: -21 | T12: A12 | U12: 1.43
A13: 2024-01-05 | B13: 2 | C13: SW | D13: 13 | E13: 2 | F13: 9 | G13: 曇時々晴 | H13: 2 | I13: SW | J13: 13 | K13: 2 | L13: 9 | M13: 曇 | N13: 10.18 | O13: 8.52 | P13: 16:35:00 | Q13: -30 | T13: A13 | U13: 1.66
A14: 2024-01-06 | B14: 3 | C14: W | D14: 15 | E14: 2 | F14: 7 | G14: 晴時々曇 | H14: 3 | I14: W | J14: 13 | K14: 2 | L14: 8 | M14: 晴のち曇 | N14: 10.36 | O14: 9.1 | P14: 17:43:00 | Q14: -42 | T14: A14 | U14: 1.26
A15: 2024-01-07 | B15: 2 | C15: W | D15: 15 | E15: 1 | F15: 5 | G15: 晴時々曇 | H15: 2 | I15: W | J15: 15 | K15: 1 | L15: 4 | M15: 晴時々曇 | N15: 10.3 | O15: 9.16 | P15: 18:38:00 | Q15: -56 | T15: A15 | U15: 1.14
A16: 2024-01-08 | B16: 3 | C16: W | D16: 18 | E16: 2 | F16: 2 | G16: 曇時々晴 | H16: 3 | I16: W | J16: 15 | K16: 2 | L16: 2 | M16: 晴時々曇 | N16: 10.1 | O16: 9.31 | P16: 19:27:00 | Q16: -70 | T16: A16 | U16: 0.79
A17: 2024-01-09 | B17: 2 | C17: SW | D17: 13 | E17: 1.5 | F17: 6 | G17: 曇 | H17: 2 | I17: SW | J17: 12 | K17: 1 | L17: 6 | M17: 曇 | N17: 9.84 | O17: 9.25 | P17: 20:13:00 | Q17: -83 | T17: A17 | U17: 0.59
A18: 2024-01-10 | B18: 3 | C18: W | D18: 15 | E18: 1.5 | F18: 4 | G18: 曇時々晴 | H18: 3 | I18: W | J18: 15 | K18: 1.5 | L18: 4 | M18: 曇時々晴 | N18: 9.58 | O18: 9.24 | P18: 20:59:00 | Q18: -94 | T18: A18 | U18: 0.34
A19: 2024-01-11 | B19: 2 | C19: W | D19: 13 | E19: 1 | F19: 3 | G19: 晴 | H19: 2 | I19: W | J19: 13 | K19: 1 | L19: 3 | M19: 晴 | N19: 9.39 | O19: 9.21 | P19: 21:42:00 | Q19: -101 | T19: A19 | U19: 0.18
A20: 2024-01-12 | B20: 3 | C20: SW | D20: 15 | E20: 1.5 | F20: 5 | G20: 曇時々晴 | H20: 3 | I20: SW | J20: 15 | K20: 2 | L20: 5 | M20: 曇時々晴 | N20: 9.13 | O20: 9.27 | P20: 22:24:00 | Q20: -102 | T20: A20 | U20: -0.14
A21: 2024-01-13 | B21: 3 | C21: W | D21: 15 | E21: 2 | F21: 3 | G21: 晴時々曇 | H21: 3 | I21: W | J21: 15 | K21: 2 | L21: 3 | M21: 晴のち曇 | N21: 9.04 | O21: 9.34 | P21: 23:03:00 | Q21: -98 | T21: A21 | U21: -0.3
A22: 2024-01-14 | B22: 2 | C22: W | D22: 15 | E22: 2 | F22: 4 | G22: 曇 | H22: 2 | I22: W | J22: 15 | K22: 2 | L22: 5 | M22: 曇 | N22: 9.16 | O22: 9.81 | P22: 23:40:00 | Q22: -89 | T22: A22 | U22: -0.65
A23: 2024-01-15 | B23: 3 | C23: W | D23: 18 | E23: 2 | F23: 0 | G23: 晴時々曇 | H23: 3 | I23: W | J23: 18 | K23: 2 | L23: 0 | M23: 晴時々曇 | N23: 9.28 | O23: 9.53 | P23: 11:52:00 | Q23: -18 | T23: A23 | U23: -0.25
A24: 2024-01-16 | B24: 3 | C24: W | D24: 15 | E24: 2.5 | F24: -1 | G24: 曇時々晴 | H24: 3 | I24: W | J24: 15 | K24: 2.5 | L24: -1 | M24: 曇時々晴 | N24: 8.8 | O24: 9.16 | P24: 12:41:00 | Q24: -27 | T24: A24 | U24: -0.36
A25: 2024-01-17 | B25: 2 | C25: W | D25: 15 | E25: 2.5 | F25: 8 | G25: 晴時々曇 | H25: 3 | I25: W | J25: 15 | K25: 2.5 | L25: 8 | M25: 晴時々曇 | N25: 8.73 | O25: 9 | P25: 13:38:00 | Q25: -35 | T25: A25 | U25: -0.27
A26: =+A25+1 -> 2024-01-18 | B26: 2 | C26: W | D26: 12 | E26: 1 | F26: 8 | G26: 曇 | H26: 2 | I26: SW | J26: 13 | K26: 1 | L26: 9 | M26: 曇 | N26: 9.05 | O26: 9.04 | P26: 14:44:00 | Q26: -42 | T26: A26 | U26: 0.01
A27: 2024-01-19 | B27: 3 | C27: NW | D27: 18 | E27: 2 | F27: 3 | G27: 晴時々曇 | H27: 3 | I27: NW | J27: 18 | K27: 2 | L27: 3 | M27: 晴時々曇 | N27: 9.13 | O27: 9.18 | P27: 16:02:00 | Q27: -48 | T27: A27 | U27: -0.05
A28: 2024-01-20 | B28: 2 | C28: W | D28: 15 | E28: 2 | F28: 3 | G28: 曇 | H28: 2 | I28: W | J28: 15 | K28: 2 | L28: 3 | M28: 晴時々曇 | N28: 9.04 | O28: 9.22 | P28: 17:24:00 | Q28: -56 | T28: A28 | U28: -0.18
A29: 2024-01-21 | B29: 3 | C29: E | D29: 23 | E29: 3 | F29: 4 | G29: 雨 | H29: 4 | I29: E | J29: 25 | K29: 5 | L29: 4 | M29: 雨 | N29: 8.53 | O29: 8.97 | P29: 18:36:00 | Q29: -64 | T29: A29 | U29: -0.44
A30: 2024-01-22 | B30: 3 | C30: E | D30: 20 | E30: 5 | F30: 6 | G30: 雨 | H30: 3 | I30: E | J30: 20 | K30: 5 | L30: 6 | M30: 雨 | N30: 8.4 | O30: 8.73 | P30: 19:35:00 | Q30: -73 | T30: A30 | U30: -0.33
A31: 2024-01-23 | B31: 4 | C31: NW | D31: 12 | E31: 4 | F31: 6 | G31: 晴時々曇 | H31: 4 | I31: NW | J31: 13 | K31: 4 | L31: 6 | M31: 晴時々曇 | N31: 9.03 | O31: 8.61 | P31: 20:24:00 | Q31: -80 | T31: A31 | U31: 0.42
A32: =+A31+1 -> 2024-01-24 | B32: 4 | C32: W | D32: 18 | E32: 3 | F32: 4 | G32: 曇時々晴 | H32: 4 | I32: W | J32: 13 | K32: 2.5 | L32: 4 | M32: 曇時々晴 | N32: 9.2 | O32: 8.22 | P32: 21:06:00 | Q32: -85 | T32: A32 | U32: 0.98
A33: 2024-01-25 | B33: 4 | C33: W | D33: 18 | E33: 2.5 | F33: 2 | G33: 曇 | H33: 4 | I33: W | J33: 18 | K33: 2.5 | L33: 2 | M33: 曇 | N33: 9.28 | O33: 7.57 | P33: 21:43:00 | Q33: -87 | T33: A33 | U33: 1.71
A34: 2024-01-26 | B34: 4 | C34: W | D34: 18 | E34: 2.5 | F34: 4 | G34: 曇 | H34: 4 | I34: W | J34: 18 | K34: 2.5 | L34: 3 | M34: 曇 | N34: 9.14 | O34: 6.77 | P34: 22:17:00 | Q34: -87 | T34: A34 | U34: 2.37
A35: 2024-01-27 | B35: 3 | C35: W | D35: 16 | E35: 2.5 | F35: 4 | G35: 曇 | H35: 3 | I35: W | J35: 16 | K35: 2.5 | L35: 5 | M35: 曇 | N35: 9.02 | O35: 7.29 | P35: 22:47:00 | Q35: -84 | T35: A35 | U35: 1.73
A36: 2024-01-28 | B36: 2 | C36: W | D36: 16 | E36: 2 | F36: 6 | G36: 晴 | H36: 2 | I36: W | J36: 15 | K36: 2 | L36: 7 | M36: 晴 | N36: 8.92 | O36: 7.61 | P36: 23:16:00 | Q36: -78 | T36: A36 | U36: 1.31
A37: 2024-01-29 | B37: 2 | C37: W | D37: 15 | E37: 2 | F37: 7 | G37: 晴時々曇 | H37: 2 | I37: W | J37: 15 | K37: 2 | L37: 7 | M37: 晴時々曇 | N37: 8.87 | O37: 7.15 | P37: 11:21:00 | Q37: -23 | T37: A37 | U37: 1.72
A38: 2024-01-30 | B38: 2 | C38: W | D38: 15 | E38: 2 | F38: 7 | G38: 晴時々曇 | H38: 2 | I38: W | J38: 15 | K38: 2 | L38: 7 | M38: 晴時々曇 | N38: 8.87 | O38: 7.29 | P38: 11:55:00 | Q38: -29 | T38: A38 | U38: 1.58
A39: 2024-01-31 | B39: 2 | C39: SW | D39: 10 | E39: 2 | F39: 9 | G39: 曇 | H39: 2 | I39: S | J39: 10 | K39: 2.5 | L39: 9 | M39: 曇 | N39: 8.86 | O39: 7.29 | P39: 12:31:00 | Q39: -33 | T39: A39 | U39: 1.57
A40: 2024-02-01 | B40: 3 | C40: W | D40: 18 | E40: 3 | F40: 3 | G40: 晴時々曇 | H40: 3 | I40: W | J40: 20 | K40: 2.5 | L40: 5 | M40: 晴時々曇 | N40: 8.42 | O40: 7.5 | P40: 13:12:00 | Q40: -36 | T40: A40 | U40: 0.92
A41: 2024-02-02 | B41: 3 | C41: W | D41: 15 | E41: 2 | F41: 2 | G41: 曇時々晴 | H41: 3 | I41: W | J41: 15 | K41: 2 | L41: 2 | M41: 曇時々晴 | N41: 8.13 | O41: 7.12 | P41: 14:00:00 | Q41: -39 | T41: A41 | U41: 1.01
A42: 2024-02-03 | B42: 3 | C42: NW | D42: 18 | E42: 2.5 | F42: 2 | G42: 曇 | H42: 3 | I42: NW | J42: 18 | K42: 2.5 | L42: 1 | M42: 曇時々晴 | N42: 8 | O42: 7.07 | P42: 15:04:00 | Q42: -43 | T42: A42 | U42: 0.93
A43: 2024-02-04 | B43: 2 | C43: W | D43: 15 | E43: 2 | F43: 4 | G43: 晴時々曇 | H43: 2 | I43: W | J43: 15 | K43: 2 | L43: 4 | M43: 晴時々曇 | N43: 7.88 | O43: 6.93 | P43: 16:30:00 | Q43: -48 | T43: A43 | U43: 0.95
A44: 2024-02-05 | B44: 2 | C44: W | D44: 15 | E44: 2 | F44: 2 | G44: 曇 | H44: 2 | I44: W | J44: 15 | K44: 2.5 | L44: 3 | M44: 曇 | N44: 7.79 | O44: 6.85 | P44: 17:57:00 | Q44: -83 | T44: A44 | U44: 0.94
A45: 2024-02-06 | B45: 2 | C45: N | D45: 13 | E45: 2 | F45: 2 | G45: 曇 | H45: 2 | I45: N | J45: 15 | K45: 2 | L45: 1 | M45: 曇 | N45: 7.72 | O45: 6.88 | P45: 19:07:00 | Q45: -71 | T45: A45 | U45: 0.84
A46: 2024-02-07 | B46: 2 | C46: W | D46: 12 | E46: 1.5 | F46: 5 | G46: 曇時々晴 | H46: 2 | I46: W | J46: 13 | K46: 1.5 | L46: 4 | M46: 曇時々晴 | N46: 7.57 | O46: 6.9 | P46: 20:03:00 | Q46: -84 | T46: A46 | U46: 0.67
A47: 2024-02-08 | B47: 2 | C47: W | D47: 15 | E47: 1.5 | F47: 5 | G47: 晴 | H47: 2 | I47: W | J47: 15 | K47: 1.5 | L47: 5 | M47: 晴 | N47: 7.54 | O47: 6.93 | P47: 20:51:00 | Q47: -95 | T47: A47 | U47: 0.61
A48: 2024-02-09 | B48: 2 | C48: W | D48: 15 | E48: 1.5 | F48: 4 | G48: 晴時々曇 | H48: 2 | I48: W | J48: 15 | K48: 1.5 | L48: 4 | M48: 晴時々曇 | N48: 7.55 | O48: 6.81 | P48: 21:33:00 | Q48: -100 | T48: A48 | U48: 0.74
A49: =+A48+1 -> 2024-02-10 | B49: 2 | C49: W | D49: 12 | E49: 1 | F49: 8 | G49: 曇時々晴 | H49: 2 | I49: W | J49: 12 | K49: 1 | L49: 5 | M49: 晴のち雪 | N49: 7.64 | O49: 6.59 | P49: 22:12:00 | Q49: -98 | T49: A49 | U49: 1.05
A50: 2024-02-11 | B50: 3 | C50: NW | D50: 15 | E50: 2 | F50: 4 | G50: 曇時々晴 | H50: 3 | I50: NW | J50: 15 | K50: 2 | L50: 4 | M50: 曇時々晴 | N50: 7.66 | O50: 6.38 | P50: 22:46:00 | Q50: -91 | T50: A50 | U50: 1.28
A51: 2024-02-12 | B51: 2 | C51: W | D51: 13 | E51: 1.5 | F51: 6 | G51: 曇時々晴 | H51: 2 | I51: W | J51: 13 | K51: 1.5 | L51: 4 | M51: 曇時々晴 | N51: 7.71 | O51: 6.42 | P51: 10:54:00 | Q51: -37 | T51: A51 | U51: 1.29
A52: 2024-02-13 | B52: 3 | C52: W | D52: 15 | E52: 1.5 | F52: 11 | G52: 晴 | H52: 2 | I52: W | J52: 15 | K52: 1 | L52: 12 | M52: 晴 | N52: 7.65 | O52: 6.47 | P52: 11:35:00 | Q52: -49 | T52: A52 | U52: 1.18
A53: 2024-02-14 | B53: 2 | C53: W | D53: 12 | E53: 1 | F53: 16 | G53: 晴時々曇 | H53: 2 | I53: W | J53: 12 | K53: 1 | L53: 17 | M53: 晴時々曇 | N53: 7.86 | O53: 6.36 | P53: 12:19:00 | Q53: -57 | T53: A53 | U53: 1.5
A54: 2024-02-15 | B54: 2 | C54: W | D54: 10 | E54: 1 | F54: 12 | G54: 雨 | H54: 2 | I54: SW | J54: 12 | K54: 1 | L54: 13 | M54: 曇のち雨 | N54: 7.82 | O54: 6.17 | P54: 13:06:00 | Q54: -61 | T54: A54 | U54: 1.65
A55: 2024-02-16 | B55: 3 | C55: NW | D55: 20 | E55: 2.5 | F55: 3 | G55: 晴時々曇 | H55: 3 | I55: NW | J55: 20 | K55: 2.5 | L55: 3 | M55: 晴時々曇 | N55: 7.94 | O55: 6.19 | P55: 14:01:00 | Q55: -60 | T55: A55 | U55: 1.75
A56: 2024-02-17 | B56: 2 | C56: W | D56: 12 | E56: 2 | F56: 5 | G56: 晴 | H56: 2 | I56: W | J56: 12 | K56: 2 | L56: 5 | M56: 晴 | N56: 8.29 | O56: 6.23 | P56: 15:12:00 | Q56: -58 | T56: A56 | U56: 2.06
A57: 2024-02-18 | B57: 2 | C57: W | D57: 10 | E57: 2 | F57: 11 | G57: 晴 | H57: 2 | I57: W | J57: 10 | K57: 2 | L57: 13 | M57: 晴 | N57: 8.34 | O57: 6.29 | P57: 16:44:00 | Q57: -57 | T57: A57 | U57: 2.05
A58: 2024-02-19 | B58: 3 | C58: SW | D58: 13 | E58: 2 | F58: 18 | G58: 晴のち曇 | H58: 3 | I58: SW | J58: 13 | K58: 2 | L58: 18 | M58: 晴のち曇 | N58: 8.43 | O58: 6.32 | P58: 18:16:00 | Q58: -60 | T58: A58 | U58: 2.11
A59: 2024-02-20 | B59: 3 | C59: NW | D59: 15 | E59: 2.5 | F59: 8 | G59: 晴時々曇 | H59: 3 | I59: NW | J59: 15 | K59: 2.5 | L59: 9 | M59: 晴時々曇 | N59: 8.5 | O59: 6.16 | P59: 19:24:00 | Q59: -66 | T59: A59 | U59: 2.34
A60: 2024-02-21 | B60: 2 | C60: NW | D60: 15 | E60: 2 | F60: 3 | G60: 曇のち雪 | H60: 2 | I60: NW | J60: 15 | K60: 2 | L60: 3 | M60: 曇のち雪 | N60: 8.41 | O60: 6.33 | P60: 20:14:00 | Q60: -73 | T60: A60 | U60: 2.08
A61: 2024-02-22 | B61: 3 | C61: NW | D61: 15 | E61: 2 | F61: 2 | G61: 曇 | H61: 3 | I61: NW | J61: 15 | K61: 2 | L61: 2 | M61: 曇 | N61: 8.31 | O61: 6.12 | P61: 20:53:00 | Q61: -78 | T61: A61 | U61: 2.19
A62: 2024-02-23 | B62: 2 | C62: W | D62: 15 | E62: 2 | F62: 2 | G62: 曇 | H62: 2 | I62: W | J62: 15 | K62: 2 | L62: 2 | M62: 曇 | N62: 8.19 | O62: 6.46 | P62: 21:26:00 | Q62: -80 | T62: A62 | U62: 1.73
A63: 2024-02-24 | B63: 3 | C63: W | D63: 15 | E63: 2 | F63: 2 | G63: 晴時々曇 | H63: 3 | I63: W | J63: 15 | K63: 2 | L63: 2 | M63: 晴時々曇 | N63: 8 | O63: 6.63 | P63: 21:56:00 | Q63: -79 | T63: A63 | U63: 1.37
A64: 2024-02-25 | B64: 2 | C64: W | D64: 13 | E64: 1.5 | F64: 3 | G64: 曇 | H64: 2 | I64: W | J64: 10 | K64: 1.5 | L64: 3 | M64: 曇 | N64: 7.99 | O64: 6.69 | P64: 10:00:00 | Q64: -31 | T64: A64 | U64: 1.3
A65: 2024-02-26 | B65: 3 | C65: N | D65: 20 | E65: 3.5 | F65: 4 | G65: みぞれ | H65: 3 | I65: N | J65: 18 | K65: 3.5 | L65: 3 | M65: みぞれ | N65: 7.55 | O65: 6.6 | P65: 10:29:00 | Q65: -39 | T65: A65 | U65: 0.95
A66: 2024-02-27 | B66: 4 | C66: N | D66: 20 | E66: 5 | F66: 3 | G66: 雪 | H66: 5 | I66: N | J66: 20 | K66: 6 | L66: 2 | M66: 大雪 | N66: 6.95 | O66: 6.62 | P66: 10:58:00 | Q66: -47 | R66: タコ篭大破損 | T66: A66 | U66: 0.33
A67: 2024-02-28 | B67: 4 | C67: N | D67: 18 | E67: 5 | F67: 3 | G67: 晴時々曇 | H67: 4 | I67: N | J67: 20 | K67: 6 | L67: 4 | M67: 晴 | N67: 7.62 | O67: 6.89 | P67: 11:28:00 | Q67: -53 | T67: A67 | U67: 0.73
A68: 2024-02-29 | B68: 2 | C68: NW | D68: 15 | E68: 4 | F68: 5 | G68: 曇 | H68: 3 | I68: NW | J68: 15 | K68: 4 | L68: 4 | M68: 曇 | N68: 7.7 | P68: 11:58:00 | Q68: -56 | T68: A68 | U68: =+N68-O69 -> 0.82
A69: 2024-03-01 | B69: 3 | C69: SE | D69: 18 | E69: 2.5 | F69: 5 | G69: 雪のち曇 | H69: 3 | I69: SE | J69: 18 | K69: 2.5 | L69: 5 | M69: 雨のち曇 | N69: 7.62 | O69: 6.88 | P69: 12:31:00 | Q69: -58 | T69: ="A"&CELL("ROW",A69) -> A69 | U69: 0.76
A70: =+A69+1 -> 2024-03-02 | B70: 3 | C70: W | D70: 15 | E70: 3 | F70: 0 | G70: 晴時々曇 | H70: 3 | I70: W | J70: 15 | K70: 3 | L70: 0 | M70: 晴時々曇 | N70: 7.47 | O70: 6.86 | P70: 13:10:00 | Q70: -58 | T70: ="A"&CELL("ROW",A70) -> A70 | U70: 0.57
A71: 2024-03-03 | B71: 2 | C71: S | D71: 13 | E71: 2 | F71: 2 | G71: 曇一時雪 | H71: 2 | I71: SW | J71: 13 | K71: 2 | L71: 2 | M71: 曇一時雪 | N71: 7.61 | O71: 6.9 | P71: 14:02:00 | Q71: -56 | T71: A71 | U71: 0.67
A72: 2024-03-04 | B72: 3 | C72: W | D72: 18 | E72: 2 | F72: 4 | G72: 晴時々曇 | H72: 3 | I72: W | J72: 18 | K72: 2 | L72: 4 | M72: 晴時々曇 | N72: 7.59 | O72: 6.94 | P72: 15:24:00 | Q72: -56 | T72: A72 | U72: 0.51
A73: 2024-03-05 | B73: 2 | C73: W | D73: 15 | E73: 1.5 | F73: 5 | G73: 曇一時晴 | H73: 2 | I73: W | J73: 15 | K73: 1.5 | L73: 5 | M73: 曇一時晴 | N73: 7.52 | O73: 7.08 | P73: 17:18:00 | Q73: -60 | T73: A73 | U73: 0.23
A74: 2024-03-06 | B74: 3 | C74: NW | D74: 13 | E74: 1 | F74: 3 | G74: 曇一時雪 | H74: 2 | I74: NW | J74: 10 | K74: 1 | L74: 4 | M74: 曇一時雪 | N74: 7.1 | O74: 7.29 | P74: 18:46:00 | Q74: -70 | T74: A74 | U74: -0.22
A75: =+A74+1 -> 2024-03-07 | B75: 2 | C75: NW | D75: 15 | E75: 2 | F75: 3 | G75: 晴時々曇 | H75: 3 | I75: NW | J75: 15 | K75: 2.5 | L75: 3 | M75: 晴時々曇 | N75: 7.36 | O75: 7.32 | P75: 19:46:00 | Q75: -80 | T75: A75 | U75: -0.14
A76: =+A75+1 -> 2024-03-08 | B76: 2 | C76: W | D76: 12 | E76: 2 | F76: 2 | G76: 曇のち雪 | H76: 2 | I76: W | J76: 12 | K76: 2 | L76: 3 | M76: 曇のち雪 | N76: 7.24 | O76: 7.5 | P76: 20:32:00 | Q76: -87 | T76: A76 | U76: -0.38
A77: 2024-03-09 | B77: 3 | C77: N | D77: 15 | E77: 2.5 | F77: 3 | G77: 曇時々晴 | H77: 3 | I77: NE | J77: 15 | K77: 2.5 | L77: 2 | M77: 曇一時雪 | N77: 7.01 | O77: 7.62 | P77: 21:12:00 | Q77: -87 | T77: A77 | U77: -0.74
A78: 2024-03-10 | B78: 3 | C78: NW | D78: 15 | E78: 2.5 | F78: 3 | G78: 曇時々晴 | H78: 3 | I78: W | J78: 15 | K78: 2.5 | L78: 3 | M78: 曇時々晴 | N78: 6.86 | O78: 7.75 | P78: 09:21:00 | Q78: -35 | T78: A78 | U78: -0.88
A79: 2024-03-11 | B79: 2 | C79: SW | D79: 13 | E79: 2 | F79: 8 | G79: 晴のち曇 | H79: 2 | I79: SW | J79: 13 | K79: 2 | L79: 8 | M79: 晴のち曇 | N79: 7.06 | O79: 7.74 | P79: 09:57:00 | Q79: -53 | T79: A79 | U79: -0.77
A80: =+A79+1 -> 2024-03-12 | B80: 2 | C80: W | D80: 12 | E80: 1.5 | F80: 11 | G80: 曇一時雨 | H80: 2 | I80: W | J80: 12 | K80: 1.5 | L80: 11 | M80: 曇一時雨 | N80: 7.21 | O80: 7.83 | P80: 10:35:00 | Q80: -68 | T80: A80 | U80: -0.71
A81: 2024-03-13 | B81: 4 | C81: NW | D81: 20 | E81: 3.5 | F81: 6 | G81: 曇一時雪 | H81: 4 | I81: NW | J81: 20 | K81: 3.5 | L81: 4 | M81: 曇時々晴 | N81: 7.17 | O81: 7.92 | P81: 11:13:00 | Q81: -78 | T81: A81 | U81: -0.67
A82: 2024-03-14 | B82: 2 | C82: SW | D82: 12 | E82: 2 | F82: 8 | G82: 曇時々晴 | H82: 2 | I82: SW | J82: 12 | K82: 2 | L82: 6 | M82: 曇時々晴 | N82: 7.16 | O82: 7.84 | P82: 11:53:00 | Q82: -81 | T82: A82 | U82: -0.63
A83: =+A82+1 -> 2024-03-15 | B83: 2 | C83: W | D83: 13 | E83: 1.5 | F83: 11 | G83: 曇 | H83: 2 | I83: W | J83: 13 | K83: 2 | L83: 11 | M83: 曇 | N83: 7.26 | O83: 7.79 | P83: 12:37:00 | Q83: -79 | T83: A83 | U83: -0.62
A84: 2024-03-16 | B84: 3 | C84: NW | D84: 15 | E84: 2.5 | F84: 8 | G84: 晴 | H84: 3 | I84: NW | J84: 15 | K84: 2.5 | L84: 9 | M84: 晴 | N84: 7.26 | O84: 7.88 | P84: 13:25:00 | Q84: -72 | T84: A84 | U84: -0.59
A85: 2024-03-17 | B85: 3 | C85: S | D85: 15 | E85: 1.5 | F85: 12 | G85: 晴時々曇 | H85: 3 | I85: S | J85: 15 | K85: 2 | L85: 13 | M85: 晴時々曇 | N85: 7.38 | O85: 7.85 | P85: 14:28:00 | Q85: -63 | T85: A85 | U85: -0.22
A86: 2024-03-18 | B86: 4 | C86: W | D86: 20 | E86: 2.5 | F86: 6 | G86: 曇時々晴 | H86: 4 | I86: W | J86: 20 | K86: 2.5 | L86: 5 | M86: 曇時々晴 | N86: 7.36 | O86: 7.6 | P86: 16:00:00 | Q86: -55 | T86: A86 | U86: -0.35
A87: 2024-03-19 | B87: 3 | C87: NW | D87: 18 | E87: 2.5 | F87: 6 | G87: 晴 | H87: 3 | I87: NW | J87: 18 | K87: 2.5 | L87: 6 | M87: 晴 | N87: 7.48 | O87: 7.71 | P87: 17:43:00 | Q87: -54 | T87: A87 | U87: -0.25
A88: 2024-03-20 | B88: 3 | C88: NE | D88: 15 | E88: 2 | F88: 1 | G88: 雪のち曇 | H88: 3 | I88: NE | J88: 15 | K88: 2 | L88: 1 | M88: 雪 | N88: 7.42 | O88: 7.73 | P88: 18:56:00 | Q88: -58 | T88: A88 | U88: -0.61
A89: 2024-03-21 | B89: 3 | C89: N | D89: 18 | E89: 3 | F89: 4 | G89: 曇 | H89: 3 | I89: NE | J89: 18 | K89: 4 | L89: 2 | M89: 雪のち曇 | N89: 7.15 | O89: 8.03 | P89: 19:45:00 | Q89: -62 | T89: A89 | U89: -1.39
A90: =+A89+1 -> 2024-03-22 | B90: 2 | C90: NW | D90: 18 | E90: 3 | F90: 5 | G90: 曇 | H90: 2 | I90: NW | J90: 15 | K90: 3 | L90: 5 | M90: 曇 | N90: 7.04 | O90: 8.54 | P90: 20:23:00 | Q90: -65 | T90: A90 | U90: -1.85
A91: =+A90+1 -> 2024-03-23 | B91: 2 | C91: W | D91: 10 | E91: 2 | F91: 6 | G91: 曇一時雨 | H91: 2 | I91: W | J91: 10 | K91: 2.5 | L91: 6 | M91: 曇 | N91: 7.11 | O91: 8.89 | P91: 20:56:00 | Q91: -65 | T91: A91 | U91: -1.81
A92: 2024-03-24 | B92: 2 | C92: W | D92: 10 | E92: 2 | F92: 10 | G92: 曇のち晴 | H92: 2 | I92: W | J92: 10 | K92: 2 | L92: 11 | M92: 晴 | N92: 7.27 | O92: 8.92 | P92: 09:10:00 | Q92: -40 | T92: A92 | U92: -1.06
A93: 2024-03-25 | B93: 2 | C93: NW | D93: 15 | E93: 2 | F93: 11 | G93: 晴時々曇 | H93: 2 | I93: NW | J93: 15 | K93: 2 | L93: 11 | M93: 晴時々曇 | N93: 7.43 | O93: 8.33 | P93: 09:37:00 | Q93: -51 | T93: A93 | U93: -0.92
A94: 2024-03-26 | B94: 2 | C94: NW | D94: 10 | E94: 1.5 | F94: 5 | G94: 曇 | H94: 2 | I94: NW | J94: 12 | K94: 1.5 | L94: 5 | M94: 曇 | N94: 7.61 | O94: 8.35 | P94: 10:04:00 | Q94: -61 | T94: A94 | U94: -0.94
A95: =+A94+1 -> 2024-03-27 | B95: 2 | C95: N | D95: 12 | E95: 2 | F95: 7 | G95: 晴時々曇 | H95: 2 | I95: NW | J95: 15 | K95: 2 | L95: 7 | M95: 晴 | N95: 7.61 | O95: 8.55 | P95: 10:32:00 | Q95: -68 | T95: A95 | U95: -1.13
A96: 2024-03-28 | B96: 2 | C96: SW | D96: 10 | E96: 1.5 | F96: 10 | G96: 晴のち曇 | H96: 2 | I96: W | J96: 10 | K96: 1.5 | L96: 11 | M96: 晴のち曇 | N96: 7.63 | O96: 8.74 | P96: 10:59:00 | Q96: -73 | T96: A96 | U96: -1.48
A97: 2024-03-29 | B97: 4 | C97: S | D97: 20 | E97: 4 | F97: 16 | G97: 雨のち晴 | H97: 4 | I97: S | J97: 20 | K97: 4 | L97: 18 | M97: 雨のち晴 | N97: 7.88 | O97: 9.11 | P97: 11:29:00 | Q97: -75 | T97: A97 | U97: -1.84
A98: 2024-03-30 | B98: 3 | C98: S | D98: 12 | E98: 3 | F98: 14 | G98: 晴 | H98: 3 | I98: S | J98: 12 | K98: 3 | L98: 14 | M98: 晴 | N98: 7.58 | O98: 9.72 | P98: 12:01:00 | Q98: -75 | T98: A98 | U98: -2.18
A99: =+A98+1 -> 2024-03-31 | B99: 2 | C99: W | D99: 12 | E99: 2.5 | F99: 13 | G99: 晴時々曇 | H99: 2 | I99: W | J99: 13 | K99: 2.5 | L99: 13 | M99: 晴時々曇 | N99: 7.46 | O99: 9.76 | P99: 12:40:00 | Q99: -72 | T99: A99 | U99: -2.44
A100: 2024-04-01 | B100: 2 | C100: W | D100: 12 | E100: 2 | F100: 11 | G100: 晴時々曇 | H100: 2 | I100: W | J100: 13 | K100: 2 | L100: 11 | M100: 晴時々曇 | N100: 7.59 | O100: 9.9 | P100: 13:30:00 | Q100: -67 | T100: A100 | U100: =+N100-O101 -> -2.21
A101: 2024-04-02 | B101: 3 | C101: W | D101: 18 | E101: 2 | F101: 11 | G101: 晴 | H101: 3 | I101: W | J101: 18 | K101: 2 | L101: 11 | M101: 晴時々曇 | N101: 7.57 | O101: 9.8 | P101: 14:48:00 | Q101: -62 | T101: A101 | U101: -2.16
A102: 2024-04-03 | B102: 2 | C102: W | D102: 10 | E102: 1.5 | F102: 11 | G102: 晴のち曇 | H102: 2 | I102: W | J102: 10 | K102: 1 | L102: 11 | M102: 晴のち曇 | N102: 7.93 | O102: 9.73 | P102: 16:41:00 | Q102: -61 | T102: A102 | U102: -1.92
A103: 2024-04-04 | B103: 2 | C103: NW | D103: 13 | E103: 1.5 | F103: 11 | G103: 曇 | H103: 2 | I103: NW | J103: 13 | K103: 1.5 | L103: 12 | M103: 曇 | N103: 8.24 | O103: 9.85 | P103: 18:11:00 | Q103: -65 | T103: A103 | U103: -1.93
A104: 2024-04-05 | B104: 3 | C104: W | D104: 15 | E104: 2 | F104: 13 | G104: 晴 | H104: 3 | I104: W | J104: 15 | K104: 2 | L104: 14 | M104: 晴 | N104: 8.58 | O104: 10.17 | P104: 19:12:00 | Q104: -68 | T104: A104 | U104: -1.82
A105: 2024-04-06 | B105: 2 | C105: S | D105: 10 | E105: 1.5 | F105: 15 | G105: 晴 | H105: 2 | I105: S | J105: 10 | K105: 2 | L105: 15 | M105: 晴 | N105: 8.88 | O105: 10.4 | P105: 19:59:00 | Q105: -67 | T105: A105 | U105: -1.64
A106: 2024-04-07 | B106: 2 | C106: S | D106: 13 | E106: 2.5 | F106: 19 | G106: 晴時々曇 | H106: 2 | I106: S | J106: 15 | K106: 2 | L106: 18 | M106: 晴時々曇 | N106: 9.2 | O106: 10.52 | P106: 08:22:00 | Q106: -41 | T106: A106 | U106: -1.13
A107: 2024-04-08 | B107: 2 | C107: W | D107: 10 | E107: 2 | F107: 19 | G107: 晴時々曇 | H107: 2 | I107: S | J107: 12 | K107: 2 | L107: 20 | M107: 晴時々曇 | N107: 9.31 | O107: 10.33 | P107: 08:58:00 | Q107: -61 | T107: A107 | U107: -0.5
A108: 2024-04-09 | B108: 3 | C108: N | D108: 18 | E108: 2.5 | F108: 9 | G108: 雨 | H108: 3 | I108: N | J108: 18 | K108: 2.5 | L108: 8 | M108: 雨 | N108: 8.53 | O108: 9.81 | P108: 09:35:00 | Q108: -79 | T108: A108 | U108: -1.51
A109: 2024-04-10 | B109: 2 | C109: W | D109: 15 | E109: 2.5 | F109: 13 | G109: 晴 | H109: 2 | I109: W | J109: 15 | K109: 2.5 | L109: 14 | M109: 晴 | N109: 8.24 | O109: 10.04 | P109: 10:13:00 | Q109: -90 | T109: A109 | U109: -2.3
A110: 2024-04-11 | B110: 2 | C110: S | D110: 10 | E110: 2 | F110: 17 | G110: 晴 | H110: 2 | I110: S | J110: 10 | K110: 2 | L110: 18 | M110: 晴 | N110: 8.65 | O110: 10.54 | P110: 10:52:00 | Q110: -96 | T110: A110 | U110: -1.58
A111: 2024-04-12 | B111: 2 | C111: W | D111: 10 | E111: 2 | F111: 17 | G111: 晴のち曇 | H111: 2 | I111: SW | J111: 10 | K111: 2 | L111: 17 | M111: 晴時々曇 | N111: 9.5 | O111: 10.23 | P111: 11:31:00 | Q111: -94 | T111: A111 | U111: -0.39
A112: 2024-04-13 | B112: 2 | C112: N | D112: 10 | E112: 2 | F112: 15 | G112: 晴時々曇 | H112: 2 | I112: N | J112: 10 | K112: 2 | L112: 16 | M112: 晴 | N112: 10.15 | O112: 9.89 | P112: 12:13:00 | Q112: -87 | T112: A112 | U112: 0.09
A113: 2024-04-14 | B113: 2 | C113: S | D113: 10 | E113: 2 | F113: 20 | G113: 晴 | H113: 2 | I113: E | J113: 10 | K113: 2 | L113: 21 | M113: 晴 | N113: 10.48 | O113: 10.06 | P113: 13:00:00 | Q113: -76 | T113: A113 | U113: 0.34
A114: 2024-04-15 | B114: 2 | C114: N | D114: 10 | E114: 2 | F114: 18 | G114: 晴 | H114: 2 | I114: E | J114: 10 | K114: 2 | L114: 19 | M114: 晴 | N114: 9.78 | O114: 10.14 | P114: 13:57:00 | Q114: -64 | T114: A114 | U114: -0.52
A115: 2024-04-16 | B115: 3 | C115: S | D115: 15 | E115: 2.5 | F115: 21 | G115: 晴時々曇 | H115: 3 | I115: S | J115: 15 | K115: 2.5 | L115: 22 | M115: 晴時々曇 | N115: 9.86 | O115: 10.3 | P115: 15:14:00 | Q115: -54 | T115: A115 | U115: -0.27
A116: 2024-04-17 | B116: 2 | C116: E | D116: 13 | E116: 2 | F116: 18 | G116: 曇のち雨 | H116: 2 | I116: S | J116: 10 | K116: 2.5 | L116: 17 | M116: 曇のち雨 | N116: 8.98 | O116: 10.13 | P116: 16:46:00 | Q116: -49 | T116: A116 | U116: -1.23
A117: 2024-04-18 | B117: 2 | C117: N | D117: 12 | E117: 2.5 | F117: 16 | G117: 晴のち曇 | H117: 2 | I117: N | J117: 12 | K117: 2.5 | L117: 16 | M117: 晴のち曇 | N117: 9.29 | O117: 10.21 | P117: 18:00:00 | Q117: -48 | T117: A117 | U117: -1.12
A118: 2024-04-19 | B118: 3 | C118: N | D118: 15 | E118: 2 | F118: 14 | G118: 曇のち晴 | H118: 3 | I118: N | J118: 15 | K118: 2 | L118: 13 | M118: 曇 | N118: 9.64 | O118: 10.41 | P118: 18:54:00 | Q118: -47 | T118: A118 | U118: -0.98
A119: 2024-04-20 | B119: 3 | C119: N | D119: 18 | E119: 2.5 | F119: 16 | G119: 晴時々曇 | H119: 3 | I119: N | J119: 18 | K119: 2.5 | L119: 16 | M119: 晴 | N119: 9.22 | O119: 10.62 | P119: 19:37:00 | Q119: -46 | T119: A119 | U119: -1.69
A120: 2024-04-21 | B120: 3 | C120: N | D120: 15 | E120: 2 | F120: 17 | G120: 晴 | H120: 3 | I120: N | J120: 15 | K120: 2 | L120: 17 | M120: 晴 | N120: 9.65 | O120: 10.91 | P120: 08:14:00 | Q120: -42 | T120: A120 | U120: -0.87
A121: 2024-04-22 | B121: 2 | C121: N | D121: 15 | E121: 2 | F121: 15 | G121: 晴 | H121: 2 | I121: N | J121: 15 | K121: 2 | L121: 14 | M121: 晴 | N121: 10.2 | O121: 10.52 | P121: 08:41:00 | Q121: -55 | T121: A121 | U121: -0.21
A122: 2024-04-23 | B122: 2 | C122: E | D122: 15 | E122: 2 | F122: 11 | G122: 曇時々晴 | H122: 2 | I122: E | J122: 15 | K122: 2 | L122: 11 | M122: 曇時々晴 | N122: 10.32 | O122: 10.41 | P122: 09:09:00 | Q122: -66 | T122: A122 | U122: -0.01
A123: 2024-04-24 | B123: 3 | C123: SE | D123: 15 | E123: 2.5 | F123: 15 | G123: 曇のち雨 | H123: 3 | I123: SE | J123: 15 | K123: 2.5 | L123: 14 | M123: 曇のち雨 | N123: 10.63 | O123: 10.33 | P123: 09:37:00 | Q123: -76 | T123: A123 | U123: 0
A124: 2024-04-25 | B124: 3 | C124: S | D124: 15 | E124: 3 | F124: 19 | G124: 曇時々晴 | H124: 3 | I124: S | J124: 15 | K124: 3 | L124: 18 | M124: 曇時々晴 | N124: 10.46 | O124: 10.63 | P124: 10:06:00 | Q124: -82 | T124: A124 | U124: -0.24
A125: 2024-04-26 | B125: 2 | C125: W | D125: 12 | E125: 2.5 | F125: 23 | G125: 晴 | H125: 3 | I125: W | J125: 12 | K125: 2 | L125: 23 | M125: 晴 | N125: 10.11 | O125: 10.7 | P125: 10:36:00 | Q125: -86 | T125: A125 | U125: -0.51
A126: 2024-04-27 | B126: 2 | C126: W | D126: 10 | E126: 2 | F126: 24 | G126: 晴 | H126: 2 | I126: W | J126: 10 | K126: 2 | L126: 23 | M126: 晴 | N126: 10.4 | O126: 10.62 | P126: 11:08:00 | Q126: -87 | T126: A126 | U126: -0.22
A127: 2024-04-28 | B127: 2 | C127: N | D127: 12 | E127: 1.5 | F127: 20 | G127: 晴のち曇 | H127: 2 | I127: N | J127: 12 | K127: 1.5 | L127: 19 | M127: 晴 | N127: 10.69 | O127: 10.62 | P127: 11:45:00 | Q127: -84 | T127: A127 | U127: -0.2
A128: 2024-04-29 | B128: 2 | C128: N | D128: 12 | E128: 1.5 | F128: 16 | G128: 晴時々曇 | H128: 2 | I128: NW | J128: 12 | K128: 1.5 | L128: 17 | M128: 晴 | N128: 10.91 | O128: 10.89 | P128: 12:27:00 | Q128: -79 | T128: A128 | U128: -0.18
A129: 2024-04-30 | B129: 2 | C129: S | D129: 12 | E129: 2 | F129: 20 | G129: 曇時々雨 | H129: 2 | I129: S | J129: 12 | K129: 2 | L129: 19 | M129: 曇時々雨 | N129: 11.33 | O129: 11.09 | P129: 13:20:00 | Q129: -72 | T129: A129 | U129: 0.3
A130: 2024-05-01 | B130: 3 | C130: N | D130: 18 | E130: 2 | F130: 16 | G130: 晴 | H130: 3 | I130: NW | J130: 18 | K130: 2 | L130: 15 | M130: 晴 | N130: 11.2 | O130: 11.03 | P130: 14:31:00 | Q130: -63 | T130: A130 | U130: 0.1
A131: 2024-05-02 | B131: 2 | C131: NW | D131: 10 | E131: 1.5 | F131: 16 | G131: 晴 | H131: 2 | I131: SW | J131: 10 | K131: 1.5 | L131: 16 | M131: 晴 | N131: 11.58 | O131: 11.1 | P131: 16:00:00 | Q131: -57 | T131: A131 | U131: 0.19
A132: 2024-05-03 | B132: 2 | C132: S | D132: 12 | E132: 1.5 | F132: 22 | G132: 晴 | H132: 2 | I132: S | J132: 12 | K132: 1.5 | L132: 22 | M132: 晴 | N132: 11.92 | O132: 11.39 | P132: 17:21:00 | Q132: -52 | T132: A132 | U132: =+N132-O133 -> 0.45
A133: 2024-05-04 | B133: 2 | C133: N | D133: 12 | E133: 1 | F133: 18 | G133: 晴 | H133: 2 | I133: NE | J133: 12 | K133: 1 | L133: 19 | M133: 晴 | N133: 12.31 | O133: 11.47 | P133: 18:22:00 | Q133: -46 | T133: A133 | U133: 0.42
A134: 2024-05-05 | B134: 2 | C134: S | D134: 10 | E134: 1.5 | F134: 22 | G134: 晴 | H134: 2 | I134: S | J134: 10 | K134: 1.5 | L134: 23 | M134: 晴 | N134: 12.48 | O134: 11.89 | P134: 07:16:00 | Q134: -40 | T134: ="A"&CELL("ROW",A134) -> A134 | U134: 0.58
A135: 2024-05-06 | B135: 3 | C135: E | D135: 12 | E135: 1.5 | F135: 20 | G135: 晴のち曇 | H135: 3 | I135: N | J135: 12 | K135: 1.5 | L135: 20 | M135: 晴のち曇 | N135: 12.51 | O135: 11.9 | P135: 07:56:00 | Q135: -61 | T135: A135 | U135: 0.76
A136: 2024-05-07 | B136: 3 | C136: S | D136: 13 | E136: 2 | F136: 19 | G136: 雨 | H136: 3 | I136: S | J136: 13 | K136: 2 | L136: 19 | M136: 雨 | N136: 12.31 | O136: 11.75 | P136: 08:35:00 | Q136: -79 | T136: A136 | U136: 0.98
A137: =+A136+1 -> 2024-05-08 | B137: 3 | C137: N | D137: 15 | E137: 2 | F137: 13 | G137: 曇 | H137: 3 | I137: N | J137: 15 | K137: 2 | L137: 12 | M137: 曇 | N137: 12.19 | O137: 11.33 | P137: 09:14:00 | Q137: -92 | T137: A137 | U137: 0.45
A138: 2024-05-09 | B138: 2 | C138: NW | D138: 10 | E138: 2 | F138: 12 | G138: 曇のち晴 | H138: 2 | I138: N | J138: 10 | K138: 2 | L138: 11 | M138: 曇 | N138: 12.04 | O138: 11.74 | P138: 09:54:00 | Q138: -99 | T138: A138 | U138: 0.14
A139: =+A138+1 -> 2024-05-10 | B139: 2 | C139: W | D139: 13 | E139: 1.5 | F139: 20 | G139: 晴 | H139: 2 | I139: W | J139: 13 | K139: 1.5 | L139: 20 | M139: 晴 | N139: 11.73 | O139: 11.9 | P139: 10:34:00 | Q139: -99 | T139: A139 | U139: -0.18
A140: 2024-05-11 | B140: 2 | C140: W | D140: 10 | E140: 1 | F140: 25 | G140: 晴 | H140: 2 | I140: W | J140: 12 | K140: 1 | L140: 26 | M140: 晴 | N140: 11.9 | O140: 11.91 | P140: 11:15:00 | Q140: -95 | T140: A140 | U140: -0.14
A141: 2024-05-12 | B141: 3 | C141: SE | D141: 13 | E141: 2 | F141: 25 | G141: 晴のち曇 | H141: 3 | I141: S | J141: 12 | K141: 1.5 | L141: 24 | M141: 晴のち曇 | N141: 12.42 | O141: 12.04 | P141: 11:57:00 | Q141: -86 | T141: A141 | U141: -0.07
A142: 2024-05-13 | B142: 3 | C142: S | D142: 12 | E142: 2.5 | F142: 18 | G142: 雨のち曇 | H142: 3 | I142: S | J142: 12 | K142: 2.5 | L142: 17 | M142: 雨のち曇 | N142: 12.33 | O142: 12.49 | P142: 12:42:00 | Q142: -75 | T142: A142 | U142: -0.35
A143: 2024-05-14 | B143: 2 | C143: W | D143: 12 | E143: 2.5 | F143: 18 | G143: 晴 | H143: 2 | I143: N | J143: 12 | K143: 2.5 | L143: 19 | M143: 晴 | N143: 12.44 | O143: 12.68 | P143: 13:31:00 | Q143: -63 | T143: A143 | U143: -0.73
A144: 2024-05-15 | B144: 2 | C144: S | D144: 13 | E144: 2 | F144: 20 | G144: 晴 | H144: 2 | I144: S | J144: 13 | K144: 2 | L144: 20 | M144: 晴 | N144: 12.63 | O144: 13.17 | P144: 14:28:00 | Q144: -52 | T144: A144 | U144: -0.22
A145: 2024-05-16 | B145: 3 | C145: S | D145: 13 | E145: 2 | F145: 20 | G145: 晴時々曇 | H145: 3 | I145: S | J145: 15 | K145: 2 | L145: 18 | M145: 曇 | N145: 12.43 | O145: 12.85 | P145: 15:35:00 | Q145: -43 | T145: A145 | U145: -0.29
A146: 2024-05-17 | B146: 3 | C146: S | D146: 15 | E146: 2.5 | F146: 18 | G146: 晴時々曇 | H146: 3 | I146: S | J146: 15 | K146: 2.5 | L146: 18 | M146: 晴のち曇 | N146: 11.31 | O146: 12.72 | P146: 16:44:00 | Q146: -35 | T146: A146 | U146: -1.55
A147: 2024-05-18 | B147: 2 | C147: S | D147: 13 | E147: 2 | F147: 24 | G147: 晴 | H147: 2 | I147: S | J147: 13 | K147: 1.5 | L147: 25 | M147: 晴 | N147: 10.87 | O147: 12.86 | P147: 17:45:00 | Q147: -29 | T147: A147 | U147: -1.8
A148: 2024-05-19 | B148: 2 | C148: E | D148: 12 | E148: 1.5 | F148: 24 | G148: 晴 | H148: 2 | I148: E | J148: 12 | K148: 1.5 | L148: 25 | M148: 晴 | N148: 11.69 | O148: 12.67 | P148: 07:02:00 | Q148: -34 | T148: A148 | U148: -1.11
A149: 2024-05-20 | B149: 2 | C149: S | D149: 12 | E149: 2 | F149: 19 | G149: 曇時々雨 | H149: 2 | I149: S | J149: 12 | K149: 2 | L149: 20 | M149: 曇時々雨 | N149: 12.16 | O149: 12.8 | P149: 07:36:00 | Q149: -48 | T149: A149 | U149: -0.98
A150: 2024-05-21 | B150: 3 | C150: S | D150: 12 | E150: 2 | F150: 19 | G150: 曇のち晴 | H150: 3 | I150: W | J150: 12 | K150: 2 | L150: 19 | M150: 曇のち晴 | N150: 11.95 | O150: 13.14 | P150: 08:07:00 | Q150: -61 | T150: A150 | U150: -0.97
A151: 2024-05-22 | B151: 2 | C151: S | D151: 12 | E151: 1.5 | F151: 22 | G151: 晴 | H151: 2 | I151: S | J151: 12 | K151: 1.5 | L151: 21 | M151: 晴 | N151: 12.14 | O151: 12.92 | P151: 08:39:00 | Q151: -72 | T151: A151
A152: 2024-05-23 | B152: 2 | C152: S | D152: 13 | E152: 2 | F152: 27 | G152: 晴 | H152: 2 | I152: S | J152: 13 | K152: 2 | L152: 27 | M152: 晴 | N152: 12.36 | O152: 12.36 | P152: 09:11:00 | Q152: -81 | T152: A152
A153: =+A152+1 -> 2024-05-24 | B153: 2 | C153: N | D153: 12 | E153: 1.5 | F153: 23 | G153: 曇一時雨 | H153: 2 | I153: N | J153: 12 | K153: 1.5 | L153: 23 | M153: 曇一時雨 | N153: 12.4 | O153: 12.53 | P153: 09:45:00 | Q153: -87 | T153: A153
A154: 2024-05-25 | B154: 3 | C154: N | D154: 15 | E154: 2 | F154: 18 | G154: 晴 | H154: 3 | I154: N | J154: 18 | K154: 2 | L154: 18 | M154: 晴 | N154: 12.21 | O154: 13.09 | P154: 10:21:00 | Q154: -90 | T154: A154
A155: 2024-05-26 | B155: 2 | C155: W | D155: 10 | E155: 1.5 | F155: 19 | G155: 晴 | H155: 2 | I155: W | J155: 10 | K155: 1 | L155: 19 | M155: 晴 | N155: 12.85 | O155: 13.34 | P155: 10:59:00 | Q155: -89 | T155: A155
A156: 2024-05-27 | B156: 3 | C156: S | D156: 15 | E156: 1.5 | F156: 24 | G156: 曇時々晴 | H156: 3 | I156: S | J156: 15 | K156: 1.5 | L156: 21 | M156: 曇 | N156: 13.04 | O156: 14.22 | P156: 11:40:00 | Q156: -86 | T156: A156
A157: 2024-05-28 | B157: 2 | C157: W | D157: 12 | E157: 2 | F157: 20 | G157: 曇のち雨 | H157: 2 | I157: N | J157: 12 | K157: 2 | L157: 19 | M157: 曇のち雨 | N157: 12.99 | O157: 14.12 | P157: 12:25:00 | Q157: -79 | T157: A157
A158: 2024-05-29 | B158: 3 | C158: N | D158: 15 | E158: 2 | F158: 19 | G158: 曇のち晴 | H158: 3 | I158: N | J158: 15 | K158: 2 | L158: 19 | M158: 曇のち晴 | N158: 13.22 | O158: 14.73 | P158: 13:14:00 | Q158: -70 | T158: A158
A159: 2024-05-30 | B159: 2 | C159: S | D159: 12 | E159: 2 | F159: 19 | G159: 曇 | H159: 2 | I159: S | J159: 12 | K159: 2 | L159: 19 | M159: 曇 | N159: 13.24 | O159: 15.1 | P159: 14:09:00 | Q159: -58 | T159: A159
A160: 2024-05-31 | B160: 2 | C160: N | D160: 10 | E160: 1.5 | F160: 17 | G160: 曇夕方雨 | H160: 2 | I160: N | J160: 10 | K160: 1.5 | L160: 15 | M160: 曇一時雨 | N160: 13.51 | O160: 15.19 | P160: 15:11:00 | Q160: -45 | T160: A160
A161: 2024-06-01 | B161: 2 | C161: NE | D161: 15 | E161: 2 | F161: 12 | G161: 曇 | H161: 2 | I161: NE | J161: 15 | K161: 2 | L161: 12 | M161: 曇 | N161: 13.49 | O161: 14.97 | P161: 04:45:00 | Q161: -15 | T161: A161
A162: 2024-06-02 | B162: 2 | C162: S | D162: 15 | E162: 2 | F162: 14 | G162: 曇のち雨 | H162: 2 | I162: S | J162: 15 | K162: 2 | L162: 15 | M162: 曇のち雨 | N162: 13.6 | O162: 14.53 | P162: 05:50:00 | Q162: -33 | T162: A162
A163: 2024-06-03 | B163: 3 | C163: E | D163: 13 | E163: 2.5 | F163: 13 | G163: 雨 | H163: 3 | I163: E | J163: 13 | K163: 2.5 | L163: 13 | M163: 雨 | N163: 13.58 | O163: 13.86 | P163: 06:43:00 | Q163: -52 | T163: A163
A164: 2024-06-04 | B164: 3 | C164: E | D164: 15 | E164: 3 | F164: 13 | G164: 雨のち曇 | H164: 3 | I164: E | J164: 13 | K164: 2 | L164: 14 | M164: 曇 | N164: 13.82 | O164: 14.12 | P164: 07:30:00 | Q164: -68 | T164: A164
A165: 2024-06-05 | B165: 2 | C165: NE | D165: 10 | E165: 2.5 | F165: 16 | G165: 晴時々曇 | H165: 2 | I165: S | J165: 12 | K165: 2.5 | L165: 17 | M165: 晴時々曇 | N165: 14.11 | O165: 14.86 | P165: 08:15:00 | Q165: -81 | T165: A165
A166: 2024-06-06 | B166: 2 | C166: N | D166: 12 | E166: 2 | F166: 17 | G166: 晴時々曇 | H166: 2 | I166: N | J166: 12 | K166: 2 | L166: 17 | M166: 晴時々曇 | N166: 14.06 | O166: 15.33 | P166: 08:58:00 | Q166: -89 | T166: A166
A167: 2024-06-07 | B167: 2 | C167: N | D167: 10 | E167: 2 | F167: 18 | G167: 晴時々曇 | H167: 2 | I167: S | J167: 12 | K167: 2 | L167: 20 | M167: 晴時々曇 | N167: 14.32 | O167: 15.83 | P167: 09:41:00 | Q167: -93 | T167: A167
A168: =+A167+1 -> 2024-06-08 | B168: 2 | C168: E | D168: 10 | E168: 1.5 | F168: 23 | G168: 晴時々曇 | H168: 2 | I168: S | J168: 10 | K168: 1.5 | L168: 24 | M168: 晴 | N168: 14.47 | O168: 16.69 | P168: 10:23:00 | Q168: -91 | T168: A168
A169: =+A168+1 -> 2024-06-09 | B169: 3 | C169: S | D169: 15 | E169: 2 | F169: 23 | G169: 晴時々曇 | H169: 3 | I169: S | J169: 15 | K169: 2 | L169: 23 | M169: 曇 | N169: 14.54 | O169: 17.05 | P169: 11:05:00 | Q169: -86 | T169: A169
A170: 2024-06-10 | B170: 3 | C170: S | D170: 12 | E170: 2.5 | F170: 21 | G170: 曇 | H170: 3 | I170: S | J170: 12 | K170: 2.5 | L170: 21 | M170: 曇 | N170: 13.89 | O170: 15.96 | P170: 11:45:00 | Q170: -78 | T170: A170
A171: 2024-06-11 | B171: 2 | C171: E | D171: 12 | E171: 2 | F171: 22 | G171: 晴時々曇 | H171: 2 | I171: N | J171: 10 | K171: 2 | L171: 22 | M171: 晴時々曇 | N171: 14.43 | O171: 15.36 | P171: 12:24:00 | Q171: -69 | T171: A171
A172: 2024-06-12 | B172: 2 | C172: S | D172: 12 | E172: 1.5 | F172: 24 | G172: 晴時々曇 | H172: 2 | I172: E | J172: 10 | K172: 1.5 | L172: 24 | M172: 晴時々曇 | N172: 14.41 | O172: 15.42 | P172: 13:03:00 | Q172: -58 | T172: A172
A173: 2024-06-13 | B173: 2 | C173: N | D173: 10 | E173: 1.5 | F173: 26 | G173: 晴時々曇 | H173: 2 | I173: N | J173: 10 | K173: 1.5 | L173: 25 | M173: 晴時々曇 | N173: 14.65 | O173: 15.49 | P173: 13:44:00 | Q173: -46 | T173: A173
A174: 2024-06-14 | B174: 2 | C174: N | D174: 13 | E174: 1.5 | F174: 21 | G174: 晴時々曇 | H174: 2 | I174: N | J174: 13 | K174: 1.5 | L174: 23 | M174: 晴のち曇 | N174: 15.27 | O174: 15.87 | P174: 14:28:00 | Q174: -34 | T174: A174
A175: 2024-06-15 | B175: 2 | C175: S | D175: 13 | E175: 1.5 | F175: 25 | G175: 晴時々曇 | H175: 2 | I175: S | J175: 13 | K175: 1.5 | L175: 25 | M175: 晴時々曇 | N175: 15.8 | O175: 15.81 | P175: 15:20:00 | Q175: -22 | T175: A175
A176: 2024-06-16 | B176: 3 | C176: S | D176: 15 | E176: 2 | F176: 26 | G176: 晴のち曇 | H176: 3 | I176: S | J176: 15 | K176: 2 | L176: 25 | M176: 晴のち曇 | N176: 16.02 | O176: 15.72 | P176: 05:12:00 | Q176: -22 | T176: A176
A177: 2024-06-17 | B177: 2 | C177: S | D177: 10 | E177: 1.5 | F177: 27 | G177: 晴 | H177: 2 | I177: W | J177: 10 | K177: 1.5 | L177: 27 | M177: 晴 | N177: 14.77 | O177: 16.22 | P177: 06:07:00 | Q177: -34 | T177: A177
A178: 2024-06-18 | B178: 2 | C178: S | D178: 12 | E178: 1.5 | F178: 27 | G178: 晴 | H178: 2 | I178: S | J178: 13 | K178: 1.5 | L178: 28 | M178: 晴時々曇 | N178: 15.11 | O178: 16.57 | P178: 06:52:00 | Q178: -46 | T178: A178
A179: =+A178+1 -> 2024-06-19 | B179: 2 | C179: E | D179: 10 | E179: 1.5 | F179: 24 | G179: 晴 | H179: 3 | I179: N | J179: 13 | K179: 1.5 | L179: 24 | M179: 晴 | N179: 15.52 | O179: 16.92 | P179: 07:32:00 | Q179: -58 | T179: A179
A180: =+A179+1 -> 2024-06-20 | B180: 2 | C180: S | D180: 10 | E180: 1.5 | F180: 25 | G180: 晴 | H180: 2 | I180: S | J180: 10 | K180: 1.5 | L180: 24 | M180: 晴 | N180: 15.63 | O180: 16.83 | P180: 08:11:00 | Q180: -69 | T180: A180
A181: 2024-06-21 | B181: 2 | C181: E | D181: 10 | E181: 1.5 | F181: 27 | G181: 晴時々曇 | H181: 2 | I181: S | J181: 10 | K181: 1.5 | L181: 26 | M181: 晴時々曇 | N181: 16.06 | O181: 17.18 | P181: 08:51:00 | Q181: -78 | T181: A181
A182: 2024-06-22 | B182: 2 | C182: N | D182: 10 | E182: 1.5 | F182: 24 | G182: 曇時々晴 | H182: 2 | I182: N | J182: 13 | K182: 1.5 | L182: 25 | M182: 晴のち曇 | N182: 16.46 | O182: 17.55 | P182: 09:32:00 | Q182: -84 | T182: A182
A183: 2024-06-23 | B183: 2 | C183: N | D183: 10 | E183: 2 | F183: 22 | G183: 曇 | H183: 2 | I183: N | J183: 10 | K183: 2 | L183: 23 | M183: 曇 | N183: 17.16 | O183: 17.09 | P183: 10:14:00 | Q183: -87 | T183: A183
A184: 2024-06-24 | B184: 3 | C184: S | D184: 12 | E184: 2.5 | F184: 23 | G184: 曇 | H184: 3 | I184: S | J184: 15 | K184: 2.5 | L184: 26 | M184: 曇 | N184: 16.73 | O184: 16.92 | P184: 10:55:00 | Q184: -86 | T184: A184
A185: 2024-06-25 | B185: 2 | C185: S | D185: 12 | E185: 2 | F185: 26 | G185: 曇 | H185: 2 | I185: S | J185: 12 | K185: 2 | L185: 25 | M185: 曇のち雨 | N185: 16.14 | O185: 17.07 | P185: 11:36:00 | Q185: -82 | T185: A185
A186: 2024-06-26 | B186: 2 | C186: N | D186: 15 | E186: 1.5 | F186: 22 | G186: 曇のち晴 | H186: 2 | I186: N | J186: 15 | K186: 1.5 | L186: 23 | M186: 曇のち晴 | N186: 16.6 | O186: 17.54 | P186: 12:17:00 | Q186: -73 | T186: A186
A187: 2024-06-27 | B187: 2 | C187: W | D187: 12 | E187: 1 | F187: 24 | G187: 晴 | H187: 2 | I187: W | J187: 12 | K187: 1 | L187: 24 | M187: 晴 | N187: 17.49 | O187: 17.92 | P187: 12:57:00 | Q187: -60 | T187: A187
A188: 2024-06-28 | B188: 2 | C188: SW | D188: 12 | E188: 0.5 | F188: 26 | G188: 晴 | H188: 2 | I188: W | J188: 10 | K188: 0.5 | L188: 26 | M188: 晴 | N188: 17.68 | O188: 18.04 | P188: 13:36:00 | Q188: -44 | T188: A188
A189: =+A188+1 -> 2024-06-29 | B189: 2 | C189: S | D189: 10 | E189: 1 | F189: 25 | G189: 晴時々曇 | H189: 2 | I189: N | J189: 10 | K189: 1 | L189: 25 | M189: 晴 | N189: 18.12 | O189: 17.51 | P189: 14:17:00 | Q189: -27 | T189: A189
A190: 2024-06-30 | B190: 2 | C190: E | D190: 10 | E190: 1.5 | F190: 25 | G190: 晴のち雨 | H190: 2 | I190: E | J190: 10 | K190: 1.5 | L190: 25 | M190: 晴のち雨 | N190: 18.05 | O190: 17.97 | P190: 15:04:00 | Q190: -10 | T190: A190
A191: =+A190+1 -> 2024-07-01 | B191: 3 | C191: E | D191: 15 | E191: 2 | F191: 26 | G191: 曇時々晴 | H191: 3 | I191: S | J191: 15 | K191: 2 | L191: 27 | M191: 雨のち晴 | N191: 16.86 | O191: 17.95 | P191: 05:10:00 | Q191: -41 | T191: A191
A192: =+A191+1 -> 2024-07-02 | B192: 2 | C192: W | D192: 15 | E192: 1.5 | F192: 27 | G192: 晴 | H192: 2 | I192: W | J192: 15 | K192: 1.5 | L192: 28 | M192: 晴 | N192: 16.53 | O192: 17.98 | P192: 06:13:00 | Q192: -53 | T192: A192
A193: 2024-07-03 | B193: 2 | C193: W | D193: 12 | E193: 1 | F193: 29 | G193: 晴のち曇 | H193: 2 | I193: W | J193: 12 | K193: 1 | L193: 28 | M193: 晴のち曇 | N193: 17.22 | O193: 18.39 | P193: 07:11:00 | Q193: -64 | T193: A193
A194: 2024-07-04 | B194: 2 | C194: NW | D194: 12 | E194: 1 | F194: 29 | G194: 晴時々曇 | H194: 2 | I194: NW | J194: 10 | K194: 1 | L194: 29 | M194: 晴時々曇 | N194: 17.88 | O194: 18.84 | P194: 08:03:00 | Q194: -72 | T194: A194
A195: 2024-07-05 | B195: 2 | C195: S | D195: 10 | E195: 1 | F195: 26 | G195: 曇のち雨 | H195: 2 | I195: S | J195: 10 | K195: 1 | L195: 26 | M195: 曇 | N195: 18.49 | O195: 19.23 | P195: 08:50:00 | Q195: -77 | T195: A195
A196: 2024-07-06 | B196: 2 | C196: S | D196: 12 | E196: 1.5 | F196: 29 | G196: 晴時々曇 | H196: 2 | I196: S | J196: 12 | K196: 1.5 | L196: 28 | M196: 晴時々曇 | N196: 18.49 | O196: 19.41 | P196: 09:35:00 | Q196: -79 | T196: A196
A197: =+A196+1 -> 2024-07-07 | B197: 2 | C197: S | D197: 13 | E197: 1.5 | F197: 29 | G197: 雨のち曇 | H197: 2 | I197: S | J197: 12 | K197: 1 | L197: 28 | M197: 雨のち曇 | N197: 18.04 | O197: 18.45 | P197: 10:15:00 | Q197: -78 | T197: A197
A198: 2024-07-08 | B198: 3 | C198: W | D198: 13 | E198: 1 | F198: 28 | G198: 晴のち曇 | H198: 2 | I198: E | J198: 13 | K198: 1 | L198: 28 | M198: 晴のち曇 | N198: 18.07 | O198: 18.05 | P198: 10:52:00 | Q198: -75 | T198: ="A"&CELL("ROW",A198) -> A198
A199: 2024-07-09 | B199: 2 | C199: S | D199: 10 | E199: 1 | F199: 25 | G199: 雨のち曇 | H199: 2 | I199: S | J199: 10 | K199: 1 | L199: 23 | M199: 雨 | N199: 18.06 | O199: 18.49 | P199: 11:27:00 | Q199: -68 | T199: A199
A200: 2024-07-10 | B200: 2 | C200: W | D200: 12 | E200: 1 | F200: 26 | G200: 晴のち雨 | H200: 2 | I200: S | J200: 12 | K200: 1 | L200: 24 | M200: 曇のち雨 | N200: 18.06 | O200: 19.3 | P200: 11:59:00 | Q200: -59 | T200: A200
A201: 2024-07-11 | B201: 3 | C201: N | D201: 15 | E201: 1 | F201: 22 | G201: 曇 | H201: 3 | I201: N | J201: 15 | K201: 1 | L201: 23 | M201: 曇のち晴 | N201: 18.64 | O201: 19.29 | P201: 12:30:00 | Q201: -49 | T201: A201
... 181 more rows

Sheet カウント
A1: カウンター
A3: 月日 | B3: カウンタ | C3: 差
A4: 2023-11-14 | B4: 14
A5: =+A4+1 -> 2023-11-15 | B5: 19 | C5: =IF(B5=0,"",B5-B4) -> 5
A6: =+A5+1 -> 2023-11-16 | B6: 28 | C6: =IF(B6=0,"",B6-B5) -> 9
A7: 2023-11-17 | B7: 32 | C7: =IF(B7=0,"",B7-B6) -> 4
A8: 2023-11-18 | B8: 52 | C8: 20
A9: 2023-11-19 | B9: 57 | C9: 5
A10: 2023-11-20 | B10: 65 | C10: 8
A11: 2023-11-21 | B11: 88 | C11: 23
A12: 2023-11-22 | B12: 98 | C12: 10
A13: 2023-11-23
A14: 2023-11-24 | B14: 113 | C14: =+B14-B12 -> 15
A15: 2023-11-25 | B15: 128 | C15: 15
A16: 2023-11-26 | B16: 133 | C16: 5
A17: 2023-11-27 | B17: 135 | C17: 2
A18: 2023-11-28 | B18: 151 | C18: 16
A19: 2023-11-29 | B19: 156 | C19: 5
A20: 2023-11-30 | B20: 163 | C20: 7
A21: 2023-12-01 | B21: 168 | C21: 5
A22: 2023-12-02 | B22: 175 | C22: 7
A23: 2023-12-03 | B23: 179 | C23: 4
A24: 2023-12-04 | B24: 181 | C24: 2
A25: 2023-12-05 | B25: 201 | C25: 20
A26: 2023-12-06 | B26: 209 | C26: 8
A27: 2023-12-07 | B27: 216 | C27: 7
A28: 2023-12-08
A29: 2023-12-09 | B29: 233 | C29: =+B29-B27 -> 17
A30: 2023-12-10 | B30: 239 | C30: 6
A31: =+A30+1 -> 2023-12-11 | B31: 247 | C31: 8
A32: 2023-12-12 | B32: 256 | C32: 9
A33: 2023-12-13 | B33: 263 | C33: 7
A34: 2023-12-14 | B34: 283 | C34: 20
A35: 2023-12-15 | B35: 297 | C35: 14
A36: 2023-12-16 | B36: 309 | C36: 12
A37: 2023-12-17 | B37: 312 | C37: 3
A38: 2023-12-18 | B38: 314 | C38: 2
A39: 2023-12-19
A40: 2023-12-20 | B40: 331 | C40: =+B40-B38 -> 17
A41: 2023-12-21 | B41: 337 | C41: 6
A42: 2023-12-22 | B42: 345 | C42: 8
A43: 2023-12-23 | B43: 349 | C43: 4
A44: 2023-12-24 | B44: 352 | C44: 3
A45: 2023-12-25 | B45: 355 | C45: 3
A46: 2023-12-26 | B46: 358 | C46: 3
A47: 2023-12-27 | B47: 366 | C47: 8
A48: 2023-12-28 | B48: 376 | C48: 10
A49: 2023-12-29
A50: 2023-12-30 | B50: 383 | C50: =+B50-B48 -> 7
A51: 2023-12-31 | B51: 387 | C51: 4
A52: 2024-01-01
A53: 2024-01-02 | B53: 397 | C53: =+B53-B51 -> 10
A54: 2024-01-03 | B54: 404 | C54: 7
A55: 2024-01-04 | B55: 408 | C55: 4
A56: 2024-01-05 | B56: 416 | C56: 8
A57: 2024-01-06 | B57: 423 | C57: 7
A58: 2024-01-07 | B58: 427 | C58: 4
A59: 2024-01-08 | B59: 428 | C59: 1
A60: 2024-01-09 | B60: 430 | C60: 2
A61: 2024-01-10
A62: 2024-01-11 | B62: 441 | C62: =+B62-B60 -> 11
A63: 2024-01-12 | B63: 443 | C63: 2
A64: 2024-01-13 | B64: 448 | C64: 5
A65: 2024-01-14 | B65: 451 | C65: 3
A66: 2024-01-15 | B66: 453 | C66: 2
A67: 2024-01-16 | B67: 458 | C67: 5
A68: 2024-01-17 | B68: 463 | C68: 5
A69: 2024-01-18 | B69: 467 | C69: 4
A70: 2024-01-19 | B70: 471 | C70: 4
A71: 2024-01-20 | B71: 482 | C71: =IF(B71=0,"",B71-B70) -> 11
A72: 2024-01-21 | B72: 491 | C72: 9
A73: 2024-01-22
A74: 2024-01-23 | B74: 501 | C74: =+B74-B72 -> 10
A75: 2024-01-24 | B75: 504 | C75: 3
A76: 2024-01-25 | B76: 512 | C76: 8
A77: 2024-01-26 | B77: 519 | C77: 7
A78: 2024-01-27 | B78: 531 | C78: 12
A79: 2024-01-28 | B79: 532 | C79: 1
A80: 2024-01-29 | B80: 534 | C80: 2
A81: 2024-01-30 | B81: 547 | C81: 13
A82: 2024-01-31 | B82: 552 | C82: 5
A83: 2024-02-01 | B83: 559 | C83: 7
A84: 2024-02-02 | B84: 563 | C84: 4
A85: 2024-02-03
A86: 2024-02-04 | B86: 574 | C86: =+B86-B84 -> 11
A87: 2024-02-05 | B87: 576 | C87: 2
A88: 2024-02-06 | B88: 578 | C88: 2
A89: 2024-02-07 | B89: 586 | C89: 8
A90: 2024-02-08 | B90: 596 | C90: 10
A91: 2024-02-09 | B91: 605 | C91: 9
A92: 2024-02-10 | B92: 609 | C92: 4
A93: 2024-02-11 | B93: 611 | C93: 2
A94: 2024-02-12 | B94: 614 | C94: 3
A95: =+A94+1 -> 2024-02-13 | B95: 616 | C95: 2
A96: 2024-02-14 | B96: 624 | C96: 8
A97: 2024-02-15 | B97: 626 | C97: 2
A98: 2024-02-16
A99: 2024-02-17
A100: 2024-02-18 | B100: 641 | C100: =+B100-B97 -> 15
A101: 2024-02-19
A102: 2024-02-20 | B102: 649 | C102: =+B102-B100 -> 8
A103: 2024-02-21
A104: 2024-02-22 | B104: 661 | C104: =+B104-B102 -> 12
A105: 2024-02-23 | B105: 667 | C105: 6
A106: 2024-02-24 | B106: 669 | C106: 2
A107: 2024-02-25 | B107: 674 | C107: 5
A108: 2024-02-26
A109: 2024-02-27 | B109: 679 | C109: =+B109-B107 -> 5
A110: 2024-02-28 | B110: 682 | C110: 3
A111: 2024-02-29 | B111: 693 | C111: 11
A112: 2024-03-01 | B112: 695 | C112: 2
A113: 2024-03-02 | B113: 697 | C113: 2
A114: 2024-03-03 | B114: 698 | C114: 1
A115: 2024-03-04 | B115: 700 | C115: 2
A116: 2024-03-05
A117: 2024-03-06
A118: 2024-03-07 | B118: 716 | C118: =+B118-B115 -> 16
A119: 2024-03-08 | B119: 719 | C119: 3
A120: 2024-03-09 | B120: 720 | C120: 1
A121: 2024-03-10 | B121: 722 | C121: 2
A122: 2024-03-11
A123: 2024-03-12
A124: 2024-03-13 | B124: 732 | C124: =+B124-B121 -> 10
A125: 2024-03-14
A126: 2024-03-15 | B126: 738 | C126: =+B126-B124 -> 6
A127: 2024-03-16
A128: 2024-03-17 | B128: 747 | C128: =+B128-B126 -> 9
A129: 2024-03-18 | B129: 750 | C129: 3
A130: 2024-03-19 | B130: 756 | C130: 6
A131: 2024-03-20 | B131: 758 | C131: 2
A132: 2024-03-21 | B132: 761 | C132: 3
A133: 2024-03-22 | B133: 764 | C133: 3
A134: 2024-03-23
A135: 2024-03-24
A136: 2024-03-25 | B136: 780 | C136: =+B136-B133 -> 16
A137: 2024-03-26 | B137: 786 | C137: =+B137-B136 -> 6
A138: 2024-03-27 | B138: 790 | C138: =IF(B138=0,"",B138-B137) -> 4
A139: 2024-03-28 | B139: 796 | C139: 6
A140: 2024-03-29
A141: 2024-03-30 | B141: 808 | C141: =+B141-B139 -> 12
A142: 2024-03-31 | B142: 811 | C142: 3
A143: 2024-04-01 | B143: 812 | C143: 1
A144: 2024-04-02
A145: 2024-04-03
A146: 2024-04-04 | B146: 820 | C146: =+B146-B143 -> 8
A147: 2024-04-05 | B147: 822 | C147: 2
A148: 2024-04-06 | B148: 825 | C148: 3
A149: 2024-04-07 | B149: 830 | C149: 5
A150: 2024-04-08 | B150: 833 | C150: 3
A151: 2024-04-09
A152: 2024-04-10 | B152: 841 | C152: =+B152-B150 -> 8
A153: 2024-04-11 | B153: 843 | C153: 2
A154: 2024-04-12 | B154: 847 | C154: 4
A155: 2024-04-13 | B155: 852 | C155: 5
A156: 2024-04-14 | B156: 860 | C156: 8
A157: 2024-04-15 | B157: 862 | C157: 2
A158: 2024-04-16 | B158: 865 | C158: 3
A159: =+A158+1 -> 2024-04-17 | B159: 869 | C159: 4
A160: 2024-04-18 | B160: 877 | C160: 8
A161: 2024-04-19 | B161: 881 | C161: 4
A162: 2024-04-20 | B162: 886 | C162: 5
A163: 2024-04-21 | B163: 889 | C163: 3
A164: 2024-04-22 | B164: 890 | C164: 1
A165: 2024-04-23 | B165: 893 | C165: 3
A166: 2024-04-24 | B166: 896 | C166: 3
A167: 2024-04-25 | B167: 901 | C167: 5
A168: 2024-04-26
A169: 2024-04-27 | B169: 909 | C169: =+B169-B167 -> 8
A170: 2024-04-28 | B170: 910 | C170: 1
A171: 2024-04-29 | B171: 912 | C171: 2
A172: 2024-04-30
A173: 2024-05-01 | B173: 916 | C173: =+B173-B171 -> 4
A174: 2024-05-02 | B174: 920 | C174: 4
A175: 2024-05-03 | B175: 925 | C175: 5
A176: 2024-05-04 | B176: 926 | C176: 1
A177: 2024-05-05
A178: 2024-05-06 | B178: 930 | C178: =+B178-B176 -> 4
A179: 2024-05-07 | B179: 933 | C179: 3
A180: 2024-05-08 | B180: 938 | C180: 5
A181: 2024-05-09 | B181: 947 | C181: 9
A182: 2024-05-10 | B182: 963 | C182: 16
A183: 2024-05-11 | B183: 969 | C183: 6
A184: 2024-05-12 | B184: 971 | C184: 2
A185: 2024-05-13 | B185: 973 | C185: 2
A186: 2024-05-14 | B186: 987 | C186: 14
A187: 2024-05-15 | B187: 987 | C187: 0
A188: 2024-05-16 | B188: 992 | C188: 5
A189: 2024-05-17
A190: 2024-05-18 | B190: 1005 | C190: =+B190-B188 -> 13
A191: 2024-05-19 | B191: 1008 | C191: 3
A192: 2024-05-20 | B192: 1018 | C192: 10
A193: 2024-05-21 | B193: 1024 | C193: 6
A194: 2024-05-22
A195: 2024-05-23 | B195: 1033 | C195: =+B195-B193 -> 9
A196: 2024-05-24 | B196: 1039 | C196: 6
A197: 2024-05-25 | B197: 1045 | C197: 6
A198: 2024-05-26 | B198: 1052 | C198: 7
A199: 2024-05-27 | B199: 1055 | C199: =IF(B199=0,"",B199-B198) -> 3
A200: 2024-05-28 | B200: 1058 | C200: 3
A201: 2024-05-29 | B201: 1062 | C201: 4
... 223 more rows

Sheet 水温
A1: 定地水温旬報 | F1: 野田湾 ５m
I2: 磯焼開始年
C3: 2022 | D3: 2021 | E3: =+D3-1 -> 2020 | F3: =+E3-1 -> 2019 | G3: 2018 | H3: 2017 | I3: 2016 | J3: 2015 | K3: 2014 | L3: 2013 | M3: 2012 | N3: 2011 | O3: 2010 | P3: =+O3-1 -> 2009 | Q3: 2008 | R3: 2007 | S3: 2006 | T3: 2005 | U3: 2004 | V3: 2003 | W3: =+V3-1 -> 2002 | X3: 2001 | Y3: 2000 | Z3: 1999
C4: R4 | D4: 3 | E4: 2 | F4: 1 | G4: 30 | H4: =+G4-1 -> 29 | I4: 28 | J4: 27 | K4: 26 | L4: 25 | M4: 24 | N4: 23 | O4: 22 | P4: =+O4-1 -> 21 | Q4: 20 | R4: 19 | S4: 18 | T4: 17 | U4: 16 | V4: 15 | W4: =+V4-1 -> 14 | X4: 13 | Y4: 12 | Z4: 11
B5: 上 | C5: =AVERAGE('2024'!N$9:N$18) -> 10.287 | D5: 8.921 | E5: 9.16 | F5: 9.29 | G5: 9.3 | H5: 8.83 | I5: 9.13 | J5: 8.43 | K5: 9.48 | N5: 9.94 | O5: 9.36 | P5: 9.87 | Q5: 9.53 | R5: 9.89 | S5: 9.21 | T5: 8.88 | U5: 10.66 | V5: 7.79 | W5: 7.56 | Z5: 9.76
A6: 1 | B6: 中 | C6: =AVERAGE('2024'!N$19:N$28) -> 9.075 | D6: 8.635 | E6: 8.46 | F6: 8.57 | G6: 8.67 | H6: 7.8 | I6: 8.15 | J6: 7.97 | K6: 8.1 | N6: 7.99 | O6: 8.24 | P6: 8.67 | Q6: 8.52 | R6: 8.74 | S6: 7.97 | T6: 8 | U6: 8.52 | V6: 7.57 | W6: 7.95 | Z6: 8.97
B7: 下 | C7: =AVERAGE('2024'!N$29:N$38) -> 8.926 | D7: 7.978 | E7: 8.26 | F7: 7.46 | G7: 7.39 | H7: 7.41 | I7: 7.79 | J7: 7.83 | K7: 7.58 | N7: 6.99 | O7: 8.11 | P7: 8.14 | Q7: 8.46 | R7: 8.34 | S7: 5.63 | T7: 7.72 | U7: 8.32 | V7: 6.74 | W7: 8.64 | Y7: 8.63 | Z7: 8.09
B8: 上 | C8: =AVERAGE('2024'!N$39:N$48) -> 7.946 | D8: 7.405 | E8: 8.37 | F8: 6.56 | G8: 7.13 | H8: 6.81 | I8: 7.83 | J8: 7.26 | K8: 6.54 | N8: 6.84 | O8: 7.43 | P8: 8.32 | Q8: 7.89 | R8: 8.34 | S8: 4.66 | T8: 7.59 | U8: 7.11 | V8: 6.51 | Z8: 8.32
A9: 2 | B9: 中 | C9: =AVERAGE('2024'!N$49:N$58) -> 7.934 | D9: 7.282 | E9: 7.58 | F9: 6.01 | G9: 6.38 | H9: 7.23 | I9: 7.95 | J9: 6.29 | K9: 5.77 | N9: 6.37 | O9: 6.76 | P9: 7.94 | Q9: 6.32 | R9: 8.08 | S9: 4.69 | T9: 7.19 | U9: 7.29 | V9: 5.79 | Z9: 8.02
B10: 下 | C10: =AVERAGE('2024'!N$59:N$68) -> 7.922 | D10: 6.901 | E10: 7.71 | F10: 6.17 | G10: 5.9 | H10: 6.99 | I10: 7.14 | J10: 4.97 | K10: 5.68 | N10: 6.89 | O10: 6.85 | P10: 7.05 | Q10: 5.63 | R10: 8.46 | S10: 4.69 | T10: 6.86 | U10: 7.53 | V10: 5.61 | Z10: 7.13
B11: 上 | C11: =AVERAGE('2024'!N$69:N$78) -> 7.338 | D11: 7.244 | E11: 7.68 | F11: 6.59 | G11: 6.25 | H11: 7.47 | I11: 7.2 | J11: 5.19 | K11: 4.51 | N11: 6.54 | O11: 6.23 | P11: 7.11 | Q11: 5.26 | R11: 7.87 | S11: 6.5 | T11: 7.2 | U11: 7.7 | V11: 6 | Z11: 7.11
A12: 3 | B12: 中 | C12: =AVERAGE('2024'!N$79:N$88) -> 7.276 | D12: 7.756 | E12: 8.19 | F12: 6.99 | G12: 6.41 | H12: 7.28 | I12: 8.21 | J12: 5.46 | K12: 3.15 | N12: 311大震災 | O12: 5.75 | P12: 6.92 | Q12: 6.04 | R12: 7.33 | S12: 7.42 | T12: 8.53 | U12: 8.76 | V12: 6.46 | Z12: 6.74
B13: 下 | C13: =AVERAGE('2024'!N$89:N$98) -> 7.431 | D13: 8.555 | E13: 8.32 | F13: 7.17 | G13: 6.85 | H13: 7.63 | I13: 8.7 | J13: 6.37 | K13: 3.49 | O13: 5.39 | P13: 6.96 | Q13: 6.72 | R13: 7.76 | S13: 7.66 | T13: 8.91 | U13: 8.53 | V13: 8.02
B14: 上 | C14: =AVERAGE('2024'!N$99:N$108) -> 8.329 | D14: 9.348 | E14: 9.01 | F14: 7.28 | G14: 7.52 | H14: 8.49 | I14: 8.88 | J14: 7.49 | K14: 4.03 | L14: 6.91 | O14: 5.61 | P14: 7.84 | Q14: 6.52 | R14: 8.57 | S14: 6.5 | T14: 7.2 | U14: 7.7 | V14: 6
A15: 4 | B15: 中 | C15: =AVERAGE('2024'!N$109:N$118) -> 9.457 | D15: 9.619 | E15: 9.1 | F15: 8.8 | G15: 7.8 | H15: 8.44 | I15: 9.2 | J15: 8.14 | K15: 4.56 | L15: 7.65 | O15: 6.09 | P15: 9.27 | Q15: 6.86 | R15: 9 | S15: 7.42 | T15: 8.53 | U15: 8.76 | V15: 6.46
B16: 下 | C16: =AVERAGE('2024'!N$119:N$128) -> 10.259 | D16: 9.703 | E16: 9.29 | F16: 10.31 | G16: 8.86 | H16: 8.79 | I16: 10.37 | J16: 9.14 | K16: 6.14 | L16: 8.21 | O16: 7.06 | P16: 9.1 | Q16: 7.61 | R16: 9.29 | S16: 7.66 | T16: 8.91 | U16: 8.53 | V16: 8.02
B17: 上 | C17: =AVERAGE('2024'!N$129:N$138) -> 11.987 | D17: 10.252 | E17: 10.69 | F17: 10.36 | G17: 9.8 | H17: 9.94 | I17: 10.52 | J17: 10.68 | K17: 7.56 | L17: 8.95 | O17: 8.49 | P17: 9.99 | Q17: 8.53 | R17: 10.24 | S17: 8.84 | T17: 10.03 | U17: 9.65 | V17: 9.28
A18: 5 | B18: 中 | C18: =AVERAGE('2024'!N$139:N$148) -> 11.975 | D18: 11.62 | E18: 11.33 | F18: 12.14 | G18: 10.91 | H18: 11.01 | I18: 11.78 | J18: 11.12 | K18: 9.13 | L18: 9.68 | O18: 9.44 | P18: 10.44 | Q18: 9.48 | R18: 11.38 | S18: 9.76 | T18: 9.5 | U18: 11.17 | V18: 10.21
B19: 下 | C19: =AVERAGE('2024'!N$149:N$159) -> 12.59636364 | D19: 12.47 | E19: 11.84 | F19: 12.53 | G19: 11.94 | H19: 13.01 | I19: 13.19 | J19: 12.66 | K19: 10.59 | L19: 11.39 | O19: 9.4 | P19: 12.41 | Q19: 10.41 | R19: 12.28 | S19: 10.88 | T19: 11.39 | U19: 11.46 | V19: 11.15
A20: コンブ | C20: ◎ | D20: △ | E20: × | F20: × | G20: × | H20: × | I20: × | J20: ◎ | K20: ◎
A21: ワカメ | C21: ◎ | D21: ◎
B22: 上 | C22: =AVERAGE('2024'!N$160:N$169) -> 13.95 | D22: 14.06 | E22: 14.45 | F22: 14.01 | G22: 12.85 | I22: 13.7 | J22: 13.57
A23: 6 | B23: 中 | C23: =AVERAGE('2024'!N$160:N$179) -> 14.4685 | D23: 14.9615 | E23: 15.71 | F23: 14.2 | G23: 13.02 | I23: 14.62 | J23: 14.88
B24: 下 | C24: =AVERAGE('2024'!N$180:N$189) -> 16.807 | D24: 15.815 | E24: 15.75 | F24: 15.29 | G24: 13.51 | I24: 14.25 | J24: 15.71
B25: 上 | C25: =AVERAGE('2024'!N$190:N$199) -> 17.769 | D25: 16.215 | E25: 16.01 | F25: 15.43 | G25: 15.39 | I25: 15.09 | J25: 16
A26: 7 | B26: 中 | C26: =AVERAGE('2024'!N$200:N$209) -> 19.335 | D26: 17.956 | E26: 16.99 | F26: 16.44 | G26: 16.37 | I26: 15.93 | J26: 17.03
B27: 下 | C27: =AVERAGE('2024'!N$210:N$220) -> 20.77 | D27: 21.50363636 | E27: 18.43 | F27: 18.28 | G27: 18.7 | I27: 17.79 | J27: 18.82
B28: 上 | C28: =AVERAGE('2024'!N$221:N$230) -> 22.621 | D28: 21.65 | E28: 19.29 | F28: 21.99 | G28: 19.87
A29: 8 | B29: 中 | C29: =AVERAGE('2024'!N$231:N$240) -> 22.65 | D29: 19.405 | E29: 21.62 | F29: 20.67 | G29: 19.55
B30: 下 | C30: =AVERAGE('2024'!N$241:N$251) -> 22.82272727 | D30: 20.73090909 | E30: 23.12 | F30: 20.27 | G30: 19.74
B31: 上 | C31: =IF(ISERROR(AVERAGE('2024'!N$252:N$261)),"",AVERAGE('2024'!N$252:N$261)) -> 23.219 | D31: 21.353 | E31: 21.42 | F31: 22.01 | G31: 20.01
A32: 9 | B32: 中 | C32: =IF(ISERROR(AVERAGE('2024'!N$262:N$271)),"",AVERAGE('2024'!N$262:N$271)) -> 23.641 | D32: 21.099 | E32: 21.43 | F32: 22.52 | G32: 20.88
B33: 下 | C33: =IF(ISERROR(AVERAGE('2024'!N$272:N$281)),"",AVERAGE('2024'!N$272:N$281)) -> 21.688 | D33: 20.805 | E33: 20.41 | F33: 21.18 | G33: 20.55
B34: 上 | C34: =IF(ISERROR(AVERAGE('2024'!N$282:N$291)),"",AVERAGE('2024'!N$282:N$291)) -> 21.58 | D34: 19.931 | E34: 19.57 | F34: 20.29 | G34: 19.72
A35: 10 | B35: 中 | C35: =IF(ISERROR(AVERAGE('2024'!N$292:N$301)),"",AVERAGE('2024'!N$292:N$301)) ->  | D35: 19.23 | E35: 18.9 | F35: 19.12 | G35: 19.11
B36: 下 | C36: =IF(ISERROR(AVERAGE('2024'!N$302:N$312)),"",AVERAGE('2024'!N$302:N$312)) ->  | D36: 17.47636364 | E36: 17.98 | F36: 18.09 | G36: 17.98
B37: 上 | C37: =IF(ISERROR(AVERAGE('2024'!N$313:N$322)),"",AVERAGE('2024'!N$313:N$322)) ->  | D37: 16.424 | E37: 16.24 | F37: 17.07 | G37: 16.8
A38: 11 | B38: 中 | C38: =IF(ISERROR(AVERAGE('2024'!N$323:N$332)),"",AVERAGE('2024'!N$323:N$332)) ->  | D38: 15.952 | E38: 14.82 | F38: 15.18 | G38: 15.85
B39: 下 | C39: =IF(ISERROR(AVERAGE('2024'!N$333:N$342)),"",AVERAGE('2024'!N$333:N$342)) ->  | D39: 14.197 | E39: 14.4 | F39: 13.75 | G39: 14.28
B40: 上 | C40: =IF(ISERROR(AVERAGE('2024'!N$343:N$352)),"",AVERAGE('2024'!N$343:N$352)) ->  | D40: 13.288 | E40: 12.42 | F40: 12.41 | G40: 12.8
A41: 12 | B41: 中 | C41: =IF(ISERROR(AVERAGE('2024'!N$353:N$362)),"",AVERAGE('2024'!N$353:N$362)) ->  | D41: 12.109 | E41: 10.96 | F41: 11.45 | G41: 11.27
B42: 下 | C42: =IF(ISERROR(AVERAGE('2024'!N$363:N$373)),"",AVERAGE('2024'!N$363:N$373)) ->  | D42: 11.47545455 | E42: 10.27 | F42: 10.29 | G42: 10.23
C43: 春の冷水で県下昆布繁茂 | D43: コンブは野田十府ケ浦以南は無し
